{"text_format":"3","workbook":"xlsx","n_sheets":3,"sheets":["Internal Active NSP Queue","Internal Completed NSP Queue","Public NSP T_L & T_T Queue"],"not_rendered":{"images":1,"macros":1,"defined_names":12},"read":"whole","date_system":"1900"}

{"sheet":"Internal Active NSP Queue","index":0,"n_rows":110,"n_cols":41,"rows_kept":110,"merged":[[4,2,4,3],[4,18,4,19],[4,34,4,38]]}
[]
["NSP Transmission to Load (T-L) and Transmission to Transmission (T-T) Interconnection Queue"]
["Note: Interconnections in WI require PUC notification."]
[]
["NSP Queue No.","Queue Date (Received Interconnection Request Form)","Type of Interconnection",null,"Customer","Expected Project           Completion Date ","Request Status                   (Evaluating/      Approved/      Denied/ Withdrawn)","Progress Stage (Phases:            Planning Review, Engineering Review, Under Construction, Completed, Withdrawn)","Point of Interconnection (Line Number or Substation)","Approval/            Denial                     Date","County","State","Expected Load Size                           (if applicable)","Voltage (kV)","Transmission Planner","Project Manager","Account Rep","FAC-002 Applic.         (Y/N)","Tendered System Impact Study Agreement                             (if applicable)",null,"Fully Executed System Impact Study","System Impact Study Agreement Payment Received","Completed System Impact Study Agreement","Fully Executed Facility Study Agreement","Facility Study Agreement Payment Received","Completed Facility Study Agreement","Constructability I                      (Date)","Response Sent to Customer       (Date)","Constructability II                   (Date)","Interconnection Estimated Cost   ($)","Interconnection Actual Cost     ($)","Construction Start Date","Jurisdiction",null,"Targeted Date for execution of required agreements",{"$nulls":4},"Comments/In-Service Date","Link to PW Folder"]
[null,null,"T-L","T-T",{"$nulls":14},"Required Date","Actual Date",{"$nulls":12},"FERC","State","E&P","Const.","T-L","T-T","O&M"]
["2013-001","2013-09-23","x",null,"NSPM","2016-06-01","Approved","Completed","Line 5527/Renner",null,"Minnehaha","SD","20 MVA","115kV","Jason Espeseth",null,"Gorski","Y","N/A","N/A","N/A","N/A","N/A","N/A","N/A","N/A","2013-12-12","N/A",{"$nulls":11},"Renner Substation request submitted by Philip Spaulding."]
["2013-002","2013-10-01","x",null,"GRE","2016-06-01","Approved","Completed","Line 0868/St. Stephens",null,"Stearns","MN","115kV","115kV","Tim Bickford",null,"Baker","Y","N/A","N/A","N/A","N/A","N/A","N/A","N/A","N/A","2014-06-01","N/A",{"$nulls":11},"St Stephen Substation request submitted by Paul Hamel"]
["2013-003","2013-10-07","x",null,"NSPW","2017-12-01","Approved","Completed","Gingles Sub",null,"Ashland","WI","10 MVA","115kV","Cooley/Gutzmann",null,"Bruning","Y","N/A","N/A","N/A","N/A","N/A","N/A","N/A","N/A",null,"N/A",{"$nulls":11},"Gingles Sub. request submitted by Ed Shannon. 2/7/17 - ISD updated."]
["2013-004","2013-10-07","x",null,"NSPW","2016-03-01","Approved","Completed","Gravel Island Sub",null,"Chippewa","WI","15 MVA","161kV","Jarred Cooley",null,"Bruning","Y","N/A","N/A","N/A","N/A","N/A","N/A","N/A","N/A","2014-05-01","N/A","Yes",{"$nulls":5},{"$f":"IF(AF10>=0.01,AF10-270,\"\")","v":""},{"$f":"IF(AF10>=0.01,AF10-90,\"\")","v":""},{"$f":"IF(AF10>=0.01,AF10-90,\"\")","v":""},{"$f":"IF(AF10>=0.01,AF10-90,\"\")","v":""},{"$f":"IF(AF10>=0.01,AF10-90,\"\")","v":""},"Gravel Island distribution source request received by Ed Shannon."]
["2013-005","2013-10-07","x",null,"NSPW","2017-06-01","Approved","Completed","Rockland/Big Rock Sub.",null,"Brown","WI","3.5 MVA","69kV","Jarred Cooley",null,"Bruning",null,"N/A","N/A","N/A","N/A","N/A","N/A","N/A","N/A","2013-11-20","N/A",{"$nulls":6},"","","","","","Rockland Sub request submitted by Ed Shannon. Looking for land.  According to Planning project experiencing permitting issues. 2/7/17 - ISD updated."]
["2013-006","2013-12-02","x",null,"NSPM","2015-11-15","Approved","Completed","Line 0883/ First Lake ",null,null,"MN","40-45 MVA","115kV","Tim Bickford",null,"Gorski","Y","N/A","N/A","N/A","N/A","N/A","N/A","N/A","N/A","2013-12-12","N/A",{"$nulls":6},"","","","",""]
["2013-007","2013-12-06","x",null,"NSPM","2016-06-01","Withdrawn","Withdrawn","New Belle Plaine Sub",null,"Scott","MN","28 MVA","69kV","Dianlong Wang",null,"Gorski",null,"N/A","N/A","N/A","N/A","N/A","N/A","N/A","N/A","2014-01-09","N/A",{"$nulls":6},"","","","","","The preferred option of adding a new substation was approved. Update 11-14-17: According to Chris Punt this interconnection is delayed. "]
["2013-008","2013-12-12","x",null,"NSPW","2015-04-01","Withdrawn","Withdrawn","GTAC/temp distr svc/LineW3607- 153",null,"Iron","WI","0.2 MVA","34.5kV","n/a",null,"Bruning",null,"N/A","N/A","N/A","N/A","N/A","N/A","N/A","N/A",null,"N/A",{"$nulls":6},"","","","","","Transmission will be proposing a three phase interconnection instead of a single phase. "]
["2014-001","2014-03-12",null,"x","MKPC","2018-01-01","Approved","Engineering Review","Maple River Sub",null,"Cass","MN","N/A","115kV","David Brauch",null,"Gorski","Y","N/A","N/A","N/A","N/A","N/A","N/A","N/A","N/A","2014-06-12","2014-08-29",{"$nulls":6},"","","","","","Identified as Minnkota's Fargo 115 kV Project."]
["2014-002","2014-03-20","x",null,"SHKP","2015-10-01","Approved","Completed","Shakopee Sub",null,"Scott","MN","20 MVA",null,"Tim Bickford",null,"Gorski","Y","N/A","N/A","N/A","N/A","N/A","N/A","N/A","N/A","2014-05-08","2014-05-20",{"$nulls":6},"","","","",""]
["2014-003","2014-04-02",null,"x","GRE","2017-05-01","Approved","Completed","Quarry 345kV/115kV Sub. ",null,"Stearns","MN","115kV","115kV","Tim Bickford",null,"Bruning","Y","N/A","N/A","N/A","N/A","N/A","N/A","N/A","N/A","2014-04-01",{"$nulls":7},"","","","","","Quarry-West St. Cloud 2nd 115kV circuit. ","GRE - MISO T-T Agrmt - Quarry - West St. Cloud - SA 2980"]
["2014-004","2014-03-20","x",null,"DPC","2017-03-31","Approved","Completed","Weyerhouser Interconnection ( N-346)",null,"Rusk","WI","69kV","69kV","Jarred Cooley",null,"Bruning","N","N/A","N/A","N/A","N/A","N/A","N/A","N/A","N/A","2012-04-10",null,"2014-07-17",{"$nulls":5},"","","","","","Presented at C1 on 4/10/2011.  C1 comments - ensure protection is involved and agrees with project. MBB 4/8/16: Per J.C. NSP installing fiber."]
["2014-005","2014-07-28","x",null,"CHAK","2016-10-01","Withdrawn","Withdrawn","TBD",null,"Carver","MN","30-50 MVA",null,"n/a",null,"Gorski",null,"N/A","N/A","N/A","N/A","N/A","N/A","N/A","N/A",{"$nulls":8},{"$f":"IF(AF19>=0.01,AF19-270,\"\")","v":""},{"$f":"IF(AF19>=0.01,AF19-90,\"\")","v":""},{"$f":"IF(AF19>=0.01,AF19-90,\"\")","v":""},{"$f":"IF(AF19>=0.01,AF19-90,\"\")","v":""},{"$f":"IF(AF19>=0.01,AF19-90,\"\")","v":""},"Replied to customer that their Interconnection Request is incomplete because of ISD and point of interconnection."]
["2014-006","2014-07-07","x",null,"NSPW","2015-04-01","Approved","Completed","W3607 str 124 (GTAC)",null,"Iron","WI",".02 MVA",{"$nulls":3},"Bruning","N","N/A","N/A","N/A","N/A","N/A","N/A","N/A","N/A","N/A","No ",null,"$200K",{"$nulls":4},{"$f":"IF(AF20>=0.01,AF20-270,\"\")","v":""},{"$f":"IF(AF20>=0.01,AF20-90,\"\")","v":""},{"$f":"IF(AF20>=0.01,AF20-90,\"\")","v":""},{"$f":"IF(AF20>=0.01,AF20-90,\"\")","v":""},{"$f":"IF(AF20>=0.01,AF20-90,\"\")","v":""},"Presented at CI by David Brauch/Ed Shannon "]
["2014-007","2014-08-11","x",null,"DPC","2016-06-01","Approved","Completed","Barron-Rice Lake-Jim Falls (Dovre - W3424)",null,"Chippewa","WI","7 - 8 MW",null,"Jarred Cooley",null,"Bruning",null,"N/A","N/A","N/A","N/A","N/A","N/A","N/A","N/A",{"$nulls":8},{"$f":"IF(AF21>=0.01,AF21-270,\"\")","v":""},{"$f":"IF(AF21>=0.01,AF21-90,\"\")","v":""},{"$f":"IF(AF21>=0.01,AF21-90,\"\")","v":""},{"$f":"IF(AF21>=0.01,AF21-90,\"\")","v":""},{"$f":"IF(AF21>=0.01,AF21-90,\"\")","v":""}]
["2014-008","2014-08-18","x",null,"MKPC","2018-01-01","Withdrawn","Withdrawn","Prairie Substation",null,"Grand Forks","ND","20 MW","115kV","David Brauch",null,"Gorski","Y","N/A","N/A","N/A","N/A","N/A","N/A","N/A","N/A","2014-12-11","2015-02-24",{"$nulls":6},{"$f":"IF(AF22>=0.01,AF22-270,\"\")","v":""},{"$f":"IF(AF22>=0.01,AF22-90,\"\")","v":""},{"$f":"IF(AF22>=0.01,AF22-90,\"\")","v":""},{"$f":"IF(AF22>=0.01,AF22-90,\"\")","v":""},{"$f":"IF(AF22>=0.01,AF22-90,\"\")","v":""}]
["2014-009","2014-09-15","x",null,"MPU","2015-12-01","Approved","Completed","Line 0795",null,"Stearns","MN","8 MW",null,"Tim Bickford",null,"Gorski",null,"N/A","N/A","N/A","N/A","N/A","N/A","N/A","N/A"]
["2014-010","2014-12-16","x",null,"NSPW",2015,"Withdrawn","Withdrawn","New Hixton Area Sub",null,"Jackson","WI","28MVA",null,"Cooley/Gutzmann",null,"Bruning",null,"N/A","N/A","N/A","N/A","N/A","N/A","N/A","N/A","2015-02-01"]
["2015-001","2015-02-16","x",null,"SHKP","2016-12-01","Approved","Completed","Dean Lake Substation",null,"Scott","MN","30 - 40 MVA",null,"Jason Espeseth",null,"Gorski",null,"N/A","N/A","N/A","N/A","N/A","N/A","N/A","N/A"]
["2015-002","2015-05-18",null,"x","GRE","2019-05-31","Approved","Completed","Brooks Lake Substation           Line 0833",null,"Wright","MN","115kV","115kV","Tim Bickford",null,"Bruning","Y","N/A","N/A","N/A","N/A","N/A","N/A","N/A","N/A","2015-09-01",{"$nulls":12},"MBB: Interconnect new distribution sub to NSP's 115kV line # 0833 between Big Swan and Crow River substations. 4/8/16 - Per T.B. waiting on feedback from GRE."]
["2015-003","2015-05-18",null,"x","GRE","2017-03-31","Approved","Completed","Randolph Substation",null,"Dakota","MN","115kV","115kV","Max McFee",null,"Bruning","Y","N/A","N/A","N/A","N/A","N/A","N/A","N/A","N/A","2015-08-13",{"$nulls":12},"MBB: Install in/out configuration out of NSP Line # 0822 to interconnect GRE's new Randolph Substation. "]
["2015-004","2015-04-07",null,"x","WMU/GRE","2019-05-31","Approved","Completed","Priam Substation            Line 0823",null,"Kandiyohi","MN","115kV","115kV","Tim Bickford","Gene Kotz","Bruning","Y","N/A","N/A","N/A","N/A","N/A","N/A","N/A","N/A","2015-07-01",{"$nulls":12},"MBB: Move existing 115kV connection at Willmar Sub to a new 115/69kV Priam Sub. "]
["2015-005","2015-10-30","x",null,"CHAK","2018-06-01","Approved","Engineering Review","Hazeltine                           Line 5570 & 5516",null,"Carver","MN","50 MVA",null,"Jason Espeseth",null,"Gorski",null,"N/A","N/A","N/A","N/A","N/A","N/A","N/A","N/A","2014-10-09"]
["2015-006","2015-10-30","x",null,"GRE","2017-01-01","Approved","Completed","St. Bonificious",null,"Hennepin","MN","69kV","69kV","Tim Bickford",null,"Bruning","N","N/A","N/A","N/A","N/A","N/A","N/A","N/A","N/A","2015-10-01",{"$nulls":12},"MBB: GRE expanding its St. Boni Sub., NSP will reroute its transmission line"]
["2015-007","2015-10-23","x",null,"GRE","2018-12-01","Approved","Completed","Riverview Sub.                CapX 345kV line# 0954",null,"Oak","MN"," 345/115/69kV"," 345/115/69kV","Tim Bickford","Brendan Cohen","Bruning","Y","N/A","N/A","N/A","N/A","N/A","N/A","N/A","N/A",{"$nulls":13},"MBB: CAPX Partners evaluating IR.  If approved, NSP plans to interconnect NSP's Millwood to Melrose line to the Riverview Sub. "]
["2016-001","2016-03-01","x",null,"OTP","2019-12-01","Evaluating","Planning Review","Harvey - Glenboro",null,"Rolette","ND","30 MW","230kV","Jason Standing",null,"Gorski","Y","N/A","N/A","N/A","N/A","N/A","N/A","N/A","N/A"]
["2016-002","2016-03-23","x",null,"NSPM","2021-05-01","Withdrawn","Withdrawn","Crosstown Sub. ",null,"Hennepin","MN","30 MVA","115kV","Jason Standing",null,"Gorski","Y","N/A","N/A","N/A","N/A","N/A","N/A","N/A","N/A","2017-09-01",{"$nulls":12},"PM - Noel Klinnert"]
["2016-003","2016-06-13","x",null,"NSPW","2021-06-01","Approved","Completed","Stanley Sub. ",null,"Barron","WI","8 MVA","69kV","Cooley/Gutzmann",null,"Bruning","N","N/A","N/A","N/A","N/A","N/A","N/A","N/A","N/A","yes",{"$nulls":12},"PM - Noel Klinnert. Project - replace existing transformer. "]
["2016-004","2016-06-13","x",null,"NSPW","2019-11-15","Evaluating","Engineering Review","Cable",null,"Bayfield","WI","4 MVA","69kV","Cooley/Gutzmann",null,"Bruning","N","N/A","N/A","N/A","N/A","N/A","N/A","N/A","N/A","yes",{"$nulls":12},"PM - Noel Klinnert. Project - Replace existing 69/12.47kV - 3.5MVA transformer with new 7MVA transformer."]
["2016-005","2016-06-13","x",null,"NSPW","2019-06-01","Evaluating","Planning Review","Farmers Inn Sub. ",null,"Sawyer","WI","9.5 MVA","69kV","Cooley/Gutzmann",null,"Bruning","N","N/A","N/A","N/A","N/A","N/A","N/A","N/A","N/A","Will take through C1 again",{"$nulls":12},"PM - Noel Klinnert..  Project - Add a new 69/12.47kV - 28MVA transformer to Farmers Inn substation."]
["2016-006","2016-06-13","X",null,"NSPW","2017-09-01","Approved","Completed","New Herbster Sub. ",null,"Bayfiled ","WI","500 KVA","34.5kV","Jason Espeseth",null,"Bruning","N","N/A","N/A","N/A","N/A","N/A","N/A","N/A","N/A","Yes",{"$nulls":12},"PM - Noel Klinnert..  Project - Rebuild existing Herbster substation on existing location."]
["2016-007","2016-06-13","X",null,"NSPW","2018-07-18","Approved","Under Construction","Griffin Street Sub. ",null,"Polk","WI","8 MVA ","69kV","Cooley/Gutzmann",null,"Bruning","N","N/A","N/A","N/A","N/A","N/A","N/A","N/A","N/A","2016-07-14"]
["2016-008","2016-07-22",null,"x","GRE","2020-09-01","Approved","Completed","Lebanon Hills",null,"Dakota","MN","115kV","115kV","Jason Standing",null,"Bruning","Y","N/A","N/A","N/A","N/A","N/A","N/A","N/A","N/A",{"$nulls":13},"PM - Noel Klinnert..  Project - Add a new 69/12.47kV - 28MVA transformer to Griffin Street substation."]
["2016-009","2016-08-19","X",null,"GRE","2019-06-01","Approved","Completed","Moon Lake",null,"Murray","MN","69kV","69kV","Dianlong Wang",null,"Bruning","N","N/A","N/A","N/A","N/A","N/A","N/A","N/A","N/A",{"$nulls":13},"PM - Chris Buboltz..  Project - GRE will construct a new Lake Wilson Breaker Station. "]
["2016-010","2016-10-31","X",null,"MLRS","2018-08-01","Withdrawn","Withdrawn","Line #0795",null,"Stearns","MN","8 MW","69kV","Tim Bickford",null,"Gorski","N","N/A","N/A","N/A","N/A","N/A","N/A","N/A"]
["2016-011","2016-10-26","X",null,"MVCLP","2018-03-31","Approved","Completed","Chapman",null,"Chippewa County","MN","69kV","69kV","Tim Bickford",null,"Bruning","N","N/A","N/A","N/A","N/A","N/A","N/A","N/A","N/A","2016-12-08","2017-01-25",{"$nulls":11},"PM - Noel Klinnert"]
["2016-012","2016-11-17","X",null,"GRE","2018-03-31","Approved","Completed","Zinran",null,"Scott","MN","115kV","115kV","Jason Espeseth",null,"Bruning","Y","N/A","N/A","N/A","N/A","N/A","N/A","N/A","N/A","Yes",{"$nulls":12},"Note: According to NSP Planning the requested location is not desirable (line 5539). GRE was advised to interconnect the new sub. at the original location (line 0898) .","GRE - T-L Master IA - Appx A-98 - Zinran"]
["2017-001","2017-05-12",null,"X","DPC","2020-03-01","Approved","Completed","Nelson                              Line # 3408",null,"Buffalo","WI","69kV","69kV","Cooley/Gutzmann",null,"Bruning","N","N/A","N/A","N/A","N/A","N/A","N/A","N/A","N/A","2017-09-01"]
["2017-002","2017-05-12",null,"X","DPC","2020-12-01","Withdrawn","Withdrawn","Clear Lake                         Line # 3427",null,"Barron","WI","69kV","69kV","Cooley/Gutzmann",null,"Bruning","N","N/A","N/A","N/A","N/A","N/A","N/A","N/A","N/A","Yes"]
["2018-001","2018-08-01",null,"X","OTP","2021-03-01","Evaluating","Planning Review","NSPM Line #0909",null,"Becker","MN","N/A","230kV","TBD",null,"Gorski","Y"]
["2018-002","2018-10-08","X",null,"NSPM","2023-10-15","Evaluating","Planning Review","NSPM Line #5503",null,"Minnehaha","SD","35 MVA","115 kV","Jason Espeseth","Gene Kotz","Gorski","Y"]
["2018-003","2018-09-10","X",null,"NSPW","2020-09-15","Approved","Engineering Review","Clear Lake - NSPM Line # 3427, 3428, 3429","Completed?","Polk","WI","14MVA","69kV","Josh Gutzmann",null,"Bruning","N","N/A","N/A","N/A","N/A","N/A","N/A","N/A","N/A","2017-09-01",{"$nulls":12},"Rebuild Clear Lake Sub west of existing sub. (69 to 23.9kV transformer)."]
["2018-004","2018-10-09","X",null,"GRE","2020-10-31","Approved","Completed","Lismore Sub.                    Line # 5545",null,"Larkin","MN","10MVA","115kV","Jason Espeseth","Gene Kotz","Bruning","Y",{"$nulls":22},"GRE - T-L Master IA - Appx A-106 - Lismore-DRAFT"]
["2018-005","2018-10-18","X",null,"CITY OF SFLS","2019-09-01","Denied","Denied","Madison St. Sub.",null,"Sioux Falls","SD","6.4 MW","115kV","Jason Espeseth",null,"Herold","Y",{"$nulls":8},"No","2018-11-01",{"$nulls":11},"Customer submitted a radial tap IR.  XES responded the configuration needed to be an In/Out tap.  Original request was denied.  Customer has not submited revised IR. "]
["2018-006","2018-11-01","X",null,"NSPW","2020-05-15","Evaluating","Planning Review","Hydro Lane Expansion","Completed?","Chippewa","WI","14MVA","69kV","Josh Gutzmann","Curt Frank","Bruning","N","N/A","N/A","N/A","N/A","N/A","N/A","N/A","N/A","Yes",{"$nulls":12},"New 28MVA, 69:12.5kV transformer will be installed on a 69kV bus extension, and a new low side structure with two feeder bays."]
["2018-007","2018-12-12","X",null,"NSPW","2020-06-01","Approved","Engineering Review","Wakanda Substation       (Line # W3404)","Completed?","Dunn","WI","10.8MVA","69kV","Josh Gutzmann","Curt Frank","Bruning","N","N/A","N/A","N/A","N/A","N/A","N/A","N/A","N/A","Yes",{"$nulls":12},"New substation proposed to be built on property at 403 Gabriel Ct., Menomonie, WI, 54741.  Property has not been purchased yet, but NSPW has first right of refusal."]
["2018-008","2018-12-12","X",null,"NSPW","2020-05-15","Approved","Under Construction","Wissota Beach Sub. Rebuild","Completed?","Chippewa","WI","No change","69kV","Josh Gutzmann","Curt Frank","Bruning","N","N/A","N/A","N/A","N/A","N/A","N/A","N/A","N/A","2019-03-01",{"$nulls":12},"Wissota Beach sub will be rebuilt by construction of new substation facilities on existing property."]
["2018-009","2018-12-12","X",null,"NSPW","2020-12-15","Approved","Engineering Review","Elmwood Sub. Rebuild","Completed?","Pierce","WI","No change","69kV","Josh Gutzmann","Curt Frank","Bruning","N","N/A","N/A","N/A","N/A","N/A","N/A","N/A","N/A","Yes",{"$nulls":12},"Construct new transmission 3-breaker station in collaboration of a rebuild of the distribution sub on existing property."]
["2018-010","2018-12-12","X",null,"NSPW","2020-12-15","Evaluating","Planning Review","Increase capacity at Cochrance Sub.","Completed?","Buffalo","WI","No change","69kV","Josh Gutzmann","Curt Frank","Bruning","N","N/A","N/A","N/A","N/A","N/A","N/A","N/A","N/A","Yes",{"$nulls":12},"Upgrade the Cochrane TR from 2.8MVA, 69:12.5kV to 7MVA, 69:12.5kV to relieve overload."]
["2018-011","2018-12-12","X",null,"NSPW","2020-12-15","Approved","Engineering Review","Replace TR1 at Cumberland Sub. ","Completed?","Barron","WI","No change","69kV","Josh Gutzmann","Curt Frank","Bruning","N","N/A","N/A","N/A","N/A","N/A","N/A","N/A","N/A","2018-11-01",{"$nulls":12},"Replace TR1: Install 7MVA, 69:23.9kV, delta-wye grounded transformer. Cumberland served from DPC. "]
["2018-012","2018-12-12","X",null,"NSPW","2020-10-15","Evaluating","Planning Review","Ridgeland Sub.","Completed?","Barron","WI","No change","69kV","Josh Gutzmann","Curt Frank","Bruning","N","N/A","N/A","N/A","N/A","N/A","N/A","N/A","N/A","Yes",{"$nulls":12},"Replace 6.25MVA, 69:23.9kV, Y-Y TR with 7MVA, 69:23.9kV std winding TR.  Modify low side structure to accommodate RID082 and a 3rd feeder. "]
["2018-013","2018-12-12","X",null,"NSPW","2020-12-15","Approved","Engineering Review","Rebuild Kinnickinnic Substation ","Completed?","St. Croix","WI","No change","69kV","Josh Gutzmann","Curt Frank","Bruning","N","N/A","N/A","N/A","N/A","N/A","N/A","N/A","N/A","2018-12-01",{"$nulls":12},"Kinnickinnic sub will be rebuilt on existing property. "]
["2018-014","2018-12-12","X",null,"NSPW","2019-12-15","Evaluating","Planning Review","Upgrade Port Wing Substation (W3604-930)","Completed?","Bayfield","WI","No change","69kV","Josh Gutzmann","Curt Frank","Bruning","N","N/A","N/A","N/A","N/A","N/A","N/A","N/A","N/A","Yes",{"$nulls":12},"SSI 4kV conversion project consists of replacing the existing 1MVA TR with a new 3MVA, 34.5-12.5kV padmount TR and replacement regs."]
["2018-015","2018-12-12","X",null,"NSPW","2020-10-15","Approved","Engineering Review","Ironwood Substation","Completed?","Gogebic","WI","No change","69kV","Josh Gutzmann","Curt Frank","Bruning","N","N/A","N/A","N/A","N/A","N/A","N/A","N/A","N/A","2018-08-01",{"$nulls":12},"This project will construct a new 12.5kV Ironwood dist. Sub yard where the old service center building was.  "]
["2019-001","2019-02-20","x",null,"GRE","2020-08-01","Approved","Completed","Cannon River Park          Line # 0832","Completed?","Rice","MN","6 MW","115kV","Dianlong Wang","Brendan Cohen","Bruning","Y",{"$nulls":22},"GRE - T-L Master IA - Appx A-107 - Cannon River-DRAFT"]
["2019-002","2019-04-02","X",null,"NSPM","2020-09-01","Evaluating","Engineering Review","Line #0886","Completed?","Washington","MN","14 MW","115 kV","Jason Espeseth","Grant Stevenson","Gorski","Y","N/A","N/A"]
["2019-003","2019-04-08","X",null,"DPC","2020-06-30","Approved","Under Construction","Hanson - Line #3403","Completed?","Clark","WI","3MW","69kV","Josh Gutzmann",null,"Bruning","N","N/A","N/A",{"$nulls":6},"2019-07-01",{"$nulls":12},"This interconnection will tap XEL's T-Corners-Spokesville line. DPC would construct approximately a four mile 69 kV tap line to the distribution substation. "]
["2019-004","2019-04-30","X",null,"NSPM","2020-11-15","Approved","Under Construction","Line #0817 - Raptor","Completed?","Washington","MN","25 MW","115 kV","Jason Standing","Brendan Cohen","Gorski","Y","N/A","N/A","N/A","N/A","N/A","N/A","N/A","N/A",{"$nulls":13},"This project will construct a new 115/34.5 kV substation (RAPTOR) that will initially have one transformer, but will be designed for ultimately two transformers."]
["2019-005","2019-05-23","X",null,"EREPC","2020-09-01","Approved ","Under Construction","Wellington / Line #0721","Completed?","Renville","MN","3 MW","69 kV","Jason Espeseth",null,"Willey","N","N/A","N/A","N/A","N/A","N/A","N/A","N/A","N/A","2019-07-01"]
["2019-006","2019-06-24","X",null,"DPC","2020-11-01","Approved","Under Construction","May Coulee / Line #3401","Completed?","Jackson","WI","5.4 MW","69 kV","Craig Wrisley ",null,"Bruning","N","N/A","N/A","N/A","N/A","N/A","N/A","N/A","N/A","2019-08-01",{"$nulls":12},"Exact tap location - TBD.  DPC has two locations: 1.1 miles NE of Hixton & another options 3.1 miles NE.  DPC will work with XEL as the tap location is determined. "]
["2019-007","2019-10-10","X",null,"NSPW","2020-05-15","Evaluating","Planning Review","Bateman Sub  Line #3418","Completed?","Chippewa","WI","14 MVA","69 kV","Josh Gutzmann",null,"Bruning","N","N/A","N/A","N/A","N/A","N/A","N/A","N/A","N/A",{"$nulls":13},"Bateman Sub. will replace Wissota Beach.  Existing Wissota Beach Substation will be retired after distribution conversion."]
["2019-008","2019-10-10","X",null,"NSPW","2021-06-15","Approved","Under Construction","Pine Street Sub/Line#3460 ","Completed?","Barron","WI","14MVA","69 kV","Josh Gutzmann",null,"Bruning","N","N/A","N/A","N/A","N/A","N/A","N/A","N/A","N/A",{"$nulls":13},"Pine Street Sub will replace Turtle Lake Sub."]
["2019-009","2019-10-22","X",null,"GRE","2022-04-01","Withdrawn","Withdrawn","Danielson Braker Station/Line 0723",null,"Meeker","MN","n/a","69 kV","Dylan Kohl ",null,"Bruning","N","N/A","N/A","N/A","N/A","N/A","N/A","N/A","N/A"]
["2020-001","2020-02-17","X",null,"City of Medford","2020-09-01","Denied","Denied","Breaker additions at Medford North and South","n/a","Taylor","WI","n/a","69 kV","Josh Gutzmann",null,"Bruning","N","N/A","N/A","N/A","N/A","N/A","N/A","N/A","N/A",{"$nulls":13},"Add 69kV breakers and line protection at 4E262, 4E265 in 2020.  Add 69kV breakers and line protection at 4E269, 4E270, 4E271 in 2021."]
["2020-002","2020-04-03","X",null,"NSPM","2021-03-15","Approved","Under Construction","Green Isle - Sub relocation due to load increase",null,"Sibley","MN","3-4MVA","69 kV","Jason Espeseth",null,"Gorski","N","N/A","N/A","N/A","N/A","N/A","N/A","N/A","N/A",{"$nulls":13},"Increased customer load causes an N-0 overload on the Green Isle Sub. The sub shall be relocated, and upgraded to a 69/13.8kV. Load shall increase from ~1MVA to 3-4MVA."]
["2020-003","2020-04-03","X",null,"NSPM","2021-12-15","Approved","Under Construction","Add TR to Elm Creek Sub",null,"Hennepin","MN","8MVA","115kV","Jason Espeseth",null,"Gorski","N","N/A","N/A","N/A","N/A","N/A","N/A","N/A","N/A",{"$nulls":13},"Add 2nd TR at Elm Creek due to 8MVA load growth (Boston Scientific)."]
["2020-004","2020-05-29","X",null,"Shakopee Public Util.","2023-03-31","Approved","Under Construction","West Shakopee - NSPM Line 0898",null,"Scott","MN","40 MVA","115/69 kV","Jason Espeseth","Emily Blegen","Herold",{"$nulls":3},"Yes","Yes","Yes",{"$nulls":16},"Interconnection agreement executed by the parties."]
["2020-005","2020-05-29","X",null,"Shakopee Public Util.","2025-06-01","Withdrawn","Withdrawn","0897 or 0898",null,"Scott","MN","20 MVA","115/69 kV",null,null,"Herold",{"$nulls":3},"Yes","No","No"]
["2020-006","2020-10-14","X",null,"NSPW","2022-05-15","Approved","Engineering Review","Somerset Sub.",null,"St. Croix","WI","11MVA","69 kV","Josh Gutzmann","Curt Frank","Bruning","N","N/A","N/A","N/A","N/A","N/A","N/A","N/A","N/A","Completed",{"$nulls":12},"Construct distribution substation facilities within NSP's existing Somerset transmission breaker station."]
["2020-007","2020-10-14","X",null,"NSPW","2022-05-15","Approved","Engineering Review","Stanley Sub. ",null,"Chippewa","WI","No change","69 kV","Josh Gutzmann",null,"Bruning","N","N/A","N/A","N/A","N/A","N/A","N/A","N/A","N/A","Completed",{"$nulls":12},"Project upgrades STA TR1 from a 14 MVA to 28 MVA with LTC."]
["2021-001","2021-03-11",null,"X","GRE","2024-06-01","Withdrawn","Withdrawn","Litchfield tap rebuild",null,"Meeker","MN","No change","69 kV","Dylan Kohl ",null,"Bruning","N","N/A","N/A","N/A","N/A","N/A","N/A","N/A","N/A","Completed",{"$nulls":12},"GRE is rebuilding its 69 kV LN line to double-circuit config from Litchfield Sub to the POI  on NSP’s 69 kV Big Swan – Atwater line #0741."]
["2021-002","2021-03-23",null,"X","GRE","2022-06-01","Approved","Completed","Willmar Sub. Expansion",null,"Kandiyohi","MN","No change","115 kV","Dylan Kohl ",null,"Bruning","N","N/A","N/A","N/A","N/A","N/A","N/A","N/A","N/A","Completed",{"$nulls":12},"GRE is expanding its 69/115/230kV substation and NSP is re-energizing its 0823 line to connect to the south west side of the sub. "]
["2021-003","2021-09-14","X",null,"Envis","2023-08-15","Approved","Engineering Review","Envis ",null,"Dakota","MN","250MW","115kV","Jason Espeseth","TBD","Bruning",{"$nulls":22},"Project Envis - Breaker and a half substation with 4 customer PODs to support operations at a data center "]
["2021-004","2021-10-06","X",null,"City of Chaska","2024","Approved","Engineering Review","West Creek Sub. ",null,"Carver","MN","220MW","115 kV","Jacob Johnson","TBD","Herold","N","N/A","N/A","Yes","N/A","N/A","N/A","N/A","N/A",{"$nulls":13},"Data center - City of Chaska - West Creek Sub."]
["2021-005","2021-10-25","X",null,"NSPM","2025-10-15","Evaluating","Planning Review","NSPM Line No. 0749",null,"Waseca","MN","6 MVA","69/24 kV",null,"Tony Wendland","Herold","N","N/A","N/A","N/A","N/A","N/A","N/A","N/A","N/A"]
["2021-006","2021-11-04","X",null,"GRE","2023-05-01","Approved","Under Construction","South Dayton Sub.",null,"Hennepin","MN","23MW","115kV","Jason Espeseth","Drew Birdsley ","Bruning","Y","N/A","N/A","N/A","N/A","N/A","N/A","N/A","N/A",{"$nulls":13},"Residential housing is expected to increase from 2,200 households in 2020, projected to be 3,200 households in 2030, and 4,400 households in 2040.  The load is expected to double to 23 MW (from the year 2023 to 2040)."]
["2021-007","2021-11-22","X",null,"GRE","2024-09-01","Evaluating","Planning Review","North Makato Sub.",null,"Nicollet ","MN","240MW","345kV","Jason Espeseth",null,"Bruning",{"$nulls":22},"North Mankato - In & out” configuration for a T-T interconnection to Xcel’s Huntley - Wilmarth 345kV "]
["2021-008","2021-12-21","x",null,"GRE","2024-06-01","Withdrawn","Withdrawn","Kimball",null,"Stearns","MN","Serve growing loads","115kV","Dylan Kohl ",null,"Bruning",{"$nulls":22},"GRE will construct approximately 2 miles of 69 kV line with 477 ACSR conductor to the high side of Meeker’s new Kimball area distribution substation."]
["2022-001","2022-01-19","X",null,"City of Sauk Centre",2024,"Approved","Engineering Review","North Substation",null,"Stearns","MN","3.8 MW","69kV","Dylan Kohl ","TBD","Willey",{"$nulls":22},"Sauk Centre is adding a substation that will transfer some of the existing load to the proposed North substation. A new radial transmission line will tap off of Xcel's existing line."]
["2022-002","2022-02-09","X",null,"GRE","2024-06-01","Evaluating","Resubmitted with new ISD","Revised Kimball",null,"Stearns","MN","Serve growing loads","115kV","Dylan Kohl ",null,"Bruning",{"$nulls":22},"GRE submitted revised Kimball interconnection request with acceptable in/out configuration."]
["2022-003","2022-02-11","X",null,"NSPM","2023-10-15","Evaluating","Planning Review","NSPM Line No. 0859 - Rich Valley/Linde",null,"Dakota","MN","8MVA","115kV","Jason Espeseth","Emily Blegen","Bruning",{"$nulls":22},"Rebuild/Reconfiguration of the Rich Valley and Linde co-located substation to accomodate an increase of one additional distribution transformer."]
["2022-004","2022-02-11","X",null,"NSPM","2023-10-15","Evaluating","Planning Review","NSPM Line No. 5527 - South Renner",null,"Minnehaha","SD","30MVA","115kV","Jason Espeseth","TBD",{"$nulls":23},"Installation of a 2nd distribution transformer at South Renner Sub to meet increasing new customer load requests. 30 MVA of additional demand confirmed to be in-progress."]
["2022-005","2022-02-23","X",null,"Copperwood Resources","2024-09-01","Evaluating","Planning Review","NSPM Line No. xxxx",null,"Wakefield","MI","22.5kW","69 kV","Josh Gutzmann","Joe Samuel",{"$nulls":23},"Copperwood is a mining project located in the Gogebic county. The project will produce copper concentrate, shipped by train to off-site smelting facilities for refining. "]
["2022-006","2022-03-28","X",null,"NSPM","2024-10-15","Evaluating","Planning Review","NSPM Line No. 0827 or 5522",null,"Hennepin","MN","30MVA","115kV","Jason Espeseth"]
["2022-007","2022-04-12","X",null,"GRE","2024-11-30","Approved","Engineering Review","Eidswold",null,"Scott","MN","same as existing","115kV","Jessica Kiddoo",null,"Bruning"]
["2022-009","2022-09-05",null,"X","OTP","2024-12-31","Approved","Engineering Review","Lake Preston",null,"Brookings","SD","65MW","115kV","Dylan Kohl ",null,"Gorski"]
["2022-008","2022-09-28","X",null,"DPC","2024-12-31","Evaluating","Planning Review","North Wal",null,"Barron","WI","5.5MW","69kV","Josh Gutzmann",null,"Bruning"]
["2022-010","2022-10-14","X",null,"GRE","2024-09-01","Evaluating","Planning Review","Century",null,"Hennepin","MN","same as existing","69kV","Jessica Kiddoo",null,"Bruning"]
["2023-001","2023-03-29","X",null,"MMPA","2026-03-31","Evaluating","Planning Review","East Shakopee",null,"Scott","MN","42MVA","115kV","Dylan Kohl ",null,"Bruning/ Anderson"]
["2023-002","2023-04-10","X",null,"GRE","2026-12-31","Evaluating","Planning Review","Laketown",null,"Carver","MN","8.5MW","115kV","Jessica Kiddoo",null,"Bruning"]
["2023-003","2023-07-12","X",null,"GRE","2026-02-26","Evaluating","Planning Review","Revised Kimball",null,"Stearns","MN","Serve growing loads","115kV","Dylan Kohl ",null,"Bruning",{"$nulls":22},"Install new 115/34.5kV 70MVA substation in Maple Grove area. XEL Dist needs addl capacity."]
["2023-004","2023-07-20","X",null,"NSPM","2027-06-15","Evaluating","Planning Review","Elm Creek",null,"Maple Grove","MN","50MVA","115kV","Jason Espeseth",null,"Gorski"]
["2023-005","8/9/20023","X",null,"NSPM","2025-10-15","Evaluating","Planning Review","Albany - 0795",null,"Stears","MN","12.4MVA","69kV","Matt Kukacka","Mitch Porter","Bruning",{"$nulls":22},"Requesting replacement transformer for ALB_TR1 rated for 69/12.47kV 14 MVA and additional transformer ALB_TR2 rated for 69/12.47kV 14 MVA."]
["2023-006","8/9/20023","X",null,"NSPM","2025-10-15","Evaluating","Planning Review","Blue Heron TR2 - 5400",null,"Stears","MN","11.1MVA","69kV","Matt Kukacka","Mitch Porter","Bruning",{"$nulls":22},"Install a new (69/13.8 kV) 28 MVA transformer with LTC at Blue Heron substation (TR02) to give additional capacity and resolve existing N-0 and N-1 risks."]
["2023-007","8/9/20023","X",null,"NSPM","2028-06-30","Evaluating","Planning Review","Burnside TR2 ",null,"Dakota","MN","9.6MVA","69kV","Josh Gutzmann","Zach Baranowski","Bruning",{"$nulls":22},"Reinforce BUR_TR02 to a (69/12.47 kV) 28 MVA transformer with LTC to give capacity to he substation"]
["2023-008","8/9/20023","X",null,"NSPM","2025-10-15","Evaluating","Planning Review","Cannon Falls TR1 - 0712",null,"Goodhue","MN","14MVA","69kV","Josh Gutzmann","Mitch Porter","Bruning",{"$nulls":22},"Replacement transformer rated for 69/12.47kV 14 MVA for CAF_TR1"]
["2023-009","8/9/20023","X",null,"NSPM","2025-10-15","Evaluating","Planning Review","Faribault TR2 - 0705",null,"Faribault","MN","12.7MVA","69kV","Jessica Kiddoo","Timothy Solberg","Bruning",{"$nulls":22},"Upgrade FAB_TR02 to a (69kV/13.8kV) 28MVA transformer and bus tie the two Transformers together in the sub"]
["2023-010","8/9/20023","X",null,"NSPM","2025-10-15","Evaluating","Planning Review","Wagon Wheel - 0783",null,"Houston","MN","6MVA","69kV","Josh Gutzmann","Dustin Walsh","Bruning",{"$nulls":22},"Build a new substation in the town of La Crescent, MN. A (69kV/13.8 kV) 14 MVA transformer will be installed at this substation along with one brand new feeder"]
["2023-011","8/9/20023","X",null,"NSPM","2024-10-15","Evaluating","Planning Review","Veseli TR1 - 0744",null,"Rice","MN","7.6MVA","69kV","Jessica Kiddoo","Ben Geer","Bruning",{"$nulls":22},"Reinforce VES_TR01 to a (69/12.47kV) 14MVA transformer from a 7 MVA to give capacity to the substation"]
["2023-012","8/10/20023","X",null,"NSPM","2026-10-15","Evaluating","Planning Review","Gaylord - 0718",null,"Sibley","MN","3MVA","69kV","Jessica Kiddoo","Chris Ayika","Bruning",{"$nulls":22},"Complete rebuild of the substation."]
["2023-013","8/10/20023","X",null,"NSPM","2026-10-15","Evaluating","Planning Review","Lafayette - 0719",null,"Nicollet ","MN","1.3MVA","69kV","Jessica Kiddoo","TBD","Bruning",{"$nulls":22},"Expansion and rebuild of Lafayette Sub. "]
["2023-014","8/25/20023","X",null,"Project Elk River","2026-01-01","Evaluating","Planning Review","Sherco vecinity",null,"Sherburne","MN","1080 MW","34.5kV","Jason Espeseth","Marie Pflipsen","Scott Hinde",{"$nulls":22},"Data center campus - up to 1080MW. After initial energization, identify what load ramp is possible. On 1-1-2026 need a minimum of 40 MW temporary power."]
["2023-015","8/29/20023","X",null,"NSPM","2026-10-15","Evaluating","Planning Review","West Byron TR2",null,"Dodge","MN","12MVA","69kV","Josh Gutzmann","Chris Ayika","Anderson",{"$nulls":22},"West Byron substation is a shared yard with Southern Minnesota Municipal Power Agency (SMMPA). Adding a second 14 MVA transformer and feeder,"]
["2023-016","8/29/20023","X",null,"NSPM","2025-12-15","Evaluating","Planning Review","Essig",null,"Brown","MN","230kVA","34.5kV","Jessica Kiddoo","Chris Ayika","Anderson",{"$nulls":22},"Rebuild of Essig Substation. "]

{"sheet":"Internal Completed NSP Queue","index":1,"n_rows":62,"n_cols":41,"rows_kept":62}
[]
["Completed NSP Transmission to Load (T-L) and Transmission to Transmission (T-T) Interconnection Queue"]
["Note: Interconnections in WI require PUC notification."]
[]
["NSP Queue No.","Queue Date (Received Interconnection Request Form)","Type of Interconnection",null,"Customer","Expected Project           Completion Date ","Request Status                   (Evaluating/      Approved/      Denied/ Withdrawn)","Progress Stage (Phases:            Planning Review, Engineering Review, Under Construction, Completed)","County","State","Expected Load Size                           (if applicable)","Point of Interconnection (Line Number or Substation)","Transmission Planner","Project Manager","Account Rep","FAC-002 Applic.         (Y/N)","Tendered System Impact Study Agreement                             (if applicable)",null,"Fully Executed System Impact Study","System Impact Study Agreement Payment Received","Completed System Impact Study Agreement","Fully Executed Facility Study Agreement","Facility Study Agreement Payment Received","Completed Facility Study Agreement","Constructability I                      (Date)","Response Sent to Customer       (Date)","Constructability II                   (Date)","Interconnection Estimated Cost   ($)","Interconnection Actual Cost     ($)","Construction Start Date","Jurisdiction",null,"Targeted Date for execution of required agreements",{"$nulls":4},"Comments/In-Service Date"]
[null,null,"T-L","T-T",{"$nulls":12},"Required Date","Actual Date",{"$nulls":12},"FERC","State","E&P","Const.","T-L","T-T","O&M"]
["2013-001","2013-09-23","x",null,"NSPM","2016-06-01","Approved","Completed","Minnehaha","SD","20 MVA","Line 5527/Renner","Jason Espeseth",null,"Gorski",null,"N/A","N/A","N/A","N/A","N/A","N/A","N/A","N/A","2013-12-12","N/A",{"$nulls":11},"Renner Substation request submitted by Philip Spaulding."]
["2013-002","2013-10-01","x",null,"GRE","2016-06-01","Approved","Completed","Stearns","MN","115kV","Line 0868/St. Stephens","Tim Bickford",null,"Baker",null,"N/A","N/A","N/A","N/A","N/A","N/A","N/A","N/A","2014-06-01","N/A",{"$nulls":11},"St Stephen Substation request submitted by Paul Hamel"]
["2013-004","2013-10-07","x",null,"NSPW","2016-03-01","Approved","Completed","Chippewa","WI","15 MVA","Gravel Island Sub","Jarred Cooley",null,"Bruning",null,"N/A","N/A","N/A","N/A","N/A","N/A","N/A","N/A","2014-05-01","N/A","Yes",{"$nulls":5},"","","","","","Gravel Island distribution source request received by Ed Shannon."]
["2013-005","2013-10-07","x",null,"NSPW","2017-06-01","Approved","Completed","Brown","WI","3.5 MVA","Rockland/Big Rock Sub.","Jarred Cooley",null,"Bruning",null,"N/A","N/A","N/A","N/A","N/A","N/A","N/A","N/A","2013-11-20","N/A",{"$nulls":6},{"$f":"IF(AD10>=0.01,AD10-270,\"\")","v":""},{"$f":"IF(AD10>=0.01,AD10-90,\"\")","v":""},{"$f":"IF(AD10>=0.01,AD10-90,\"\")","v":""},{"$f":"IF(AD10>=0.01,AD10-90,\"\")","v":""},{"$f":"IF(AD10>=0.01,AD10-90,\"\")","v":""},"Rockland Sub request submitted by Ed Shannon. Looking for land.  According to Planning project experiencing permitting issues. 2/7/17 - ISD updated."]
["2013-006","2013-12-02","x",null,"NSPM","2015-11-15","Approved","Completed",null,"MN","40-45 MVA","Line 0883/ First Lake ","Tim Bickford",null,"Gorski",null,"N/A","N/A","N/A","N/A","N/A","N/A","N/A","N/A","2013-12-12","N/A",{"$nulls":6},{"$f":"IF(AD11>=0.01,AD11-270,\"\")","v":""},{"$f":"IF(AD11>=0.01,AD11-90,\"\")","v":""},{"$f":"IF(AD11>=0.01,AD11-90,\"\")","v":""},{"$f":"IF(AD11>=0.01,AD11-90,\"\")","v":""},{"$f":"IF(AD11>=0.01,AD11-90,\"\")","v":""}]
["2013-007","2013-12-06","x",null,"NSPM","2016-06-01","Withdrawn","Withdrawn","Scott","MN","28 MVA","New Belle Plaine Sub","Dianlong Wang",null,"Gorski",null,"N/A","N/A","N/A","N/A","N/A","N/A","N/A","N/A","2014-01-09","N/A",{"$nulls":6},{"$f":"IF(AD12>=0.01,AD12-270,\"\")","v":""},{"$f":"IF(AD12>=0.01,AD12-90,\"\")","v":""},{"$f":"IF(AD12>=0.01,AD12-90,\"\")","v":""}]
["2013-008","2013-12-12","x",null,"NSPW","2015-04-01","Withdrawn","Withdrawn","Iron","WI","0.2 MVA","GTAC/temp distr svc/LineW3607- 153",null,null,"Bruning",null,"N/A","N/A","N/A","N/A","N/A","N/A","N/A","N/A",null,"N/A",{"$nulls":6},{"$f":"IF(AD13>=0.01,AD13-270,\"\")","v":""},{"$f":"IF(AD13>=0.01,AD13-90,\"\")","v":""},{"$f":"IF(AD13>=0.01,AD13-90,\"\")","v":""},{"$f":"IF(AD13>=0.01,AD13-90,\"\")","v":""},{"$f":"IF(AD13>=0.01,AD13-90,\"\")","v":""},"Transmission will be proposing a three phase interconnection instead of a single phase. "]
["2014-002","2014-03-20","x",null,"SHKP","2015-10-01","Approved","Completed","Scott","MN","20 MVA","Shakopee Sub","Tim Bickford",null,"Gorski",null,"N/A","N/A","N/A","N/A","N/A","N/A","N/A","N/A","2014-05-08","2014-05-20",{"$nulls":6},"","","","",""]
["2014-003","2014-04-02",null,"x","GRE","2017-05-01","Approved","Completed","Stearns","MN","115kV","Quarry 345kV/115kV Sub. ","Tim Bickford",null,"Bruning",null,"N/A","N/A","N/A","N/A","N/A","N/A","N/A","N/A","2014-04-01",{"$nulls":7},"","","","","","Quarry-West St. Cloud 2nd 115kV circuit. "]
["2014-004","2014-03-20","x",null,"DPC","2017-03-31","Approved","Completed","Rusk","WI","69kV","Weyerhouser Interconnection ( N-346)","Jarred Cooley",null,"Bruning",null,"N/A","N/A","N/A","N/A","N/A","N/A","N/A","N/A","2012-04-10",null,"2014-07-17",{"$nulls":5},"","","","","","Presented at C1 on 4/10/2011.  C1 comments - ensure protection is involved and agrees with project. MBB 4/8/16: Per J.C. NSP installing fiber."]
["2014-005","2014-07-28","x",null,"CHAK","2016-10-01","Withdrawn","Withdrawn","Carver","MN","30-50 MVA","TBD","n/a",null,"Gorski",null,"N/A","N/A","N/A","N/A","N/A","N/A","N/A","N/A",{"$nulls":8},{"$f":"IF(AD17>=0.01,AD17-270,\"\")","v":""},{"$f":"IF(AD17>=0.01,AD17-90,\"\")","v":""},{"$f":"IF(AD17>=0.01,AD17-90,\"\")","v":""}]
["2014-006","2014-07-07","x",null,"NSPW","2015-04-01","Approved","Completed","Iron","WI",".02 MVA","W3607 str 124 (GTAC)",null,null,"Bruning",null,"N/A","N/A","N/A","N/A","N/A","N/A","N/A","N/A","N/A","No ",null,"$200K",{"$nulls":4},{"$f":"IF(AD18>=0.01,AD18-270,\"\")","v":""},{"$f":"IF(AD18>=0.01,AD18-90,\"\")","v":""},{"$f":"IF(AD18>=0.01,AD18-90,\"\")","v":""},{"$f":"IF(AD18>=0.01,AD18-90,\"\")","v":""},{"$f":"IF(AD18>=0.01,AD18-90,\"\")","v":""},"Presented at CI by David Brauch/Ed Shannon "]
["2014-007","2014-08-11","x",null,"DPC","2016-06-01","Approved","Completed","Chippewa","WI","7 - 8 MW","Barron-Rice Lake-Jim Falls (Dovre - W3424)","Jarred Cooley",null,"Bruning",null,"N/A","N/A","N/A","N/A","N/A","N/A","N/A","N/A",{"$nulls":8},"","","","",""]
["2014-008","2014-08-18","x",null,"MKPC","2018-01-01","Withdrawn","Withdrawn","Grand Forks","ND","20 MW","Prairie Substation 115 kV","David Brauch",null,"Gorski",null,"N/A","N/A","N/A","N/A","N/A","N/A","N/A","N/A","2014-12-11","2015-02-24",{"$nulls":6},{"$f":"IF(AD20>=0.01,AD20-270,\"\")","v":""},{"$f":"IF(AD20>=0.01,AD20-90,\"\")","v":""},{"$f":"IF(AD20>=0.01,AD20-90,\"\")","v":""}]
["2014-009","2014-09-15","x",null,"MPU","2015-12-01","Approved","Completed","Stearns","MN","8 MW","Line 0795","Tim Bickford",null,"Gorski",null,"N/A","N/A","N/A","N/A","N/A","N/A","N/A","N/A"]
["2014-010","2014-12-16","x",null,"NSPW",2015,"Withdrawn","Withdrawn","Jackson","WI","28MVA","New Hixton Area Sub","Jarred Cooley",null,"Bruning",null,"N/A","N/A","N/A","N/A","N/A","N/A","N/A","N/A","2015-02-01"]
["2015-001","2015-02-16","x",null,"SHKP","2016-12-01","Approved","Completed","Scott","MN","30 - 40 MVA","Dean Lake Substation","Jason Espeseth",null,"Gorski",null,"N/A","N/A","N/A","N/A","N/A","N/A","N/A","N/A"]
["2015-003","2015-05-18",null,"x","GRE","2017-03-31","Approved","Completed","Dakota","MN","115kV","Randolph Substation","Max McFee",null,"Bruning",null,"N/A","N/A","N/A","N/A","N/A","N/A","N/A","N/A","2015-08-13",{"$nulls":12},"MBB: Install in/out configuration out of NSP Line # 0822 to interconnect GRE's new Randolph Substation. ","The preferred option of adding a new substation was approved. Update 11-14-17: According to Chris Punt this interconnection is delayed. "]
["2016-001","2016-03-01","x",null,"OTP","2019-12-01","Evaluating","Planning Review",null,"Rolette","ND","30 MW","230kV","Harvey - Glenboro","Jason Standing",null,"Gorski","Y","N/A","N/A","N/A","N/A","N/A","N/A","N/A","N/A"]
["2015-006","2015-10-30","x",null,"GRE","2017-01-01","Approved","Completed","Hennepin","MN","69kV","St. Bonificious","Tim Bickford",null,"Bruning",null,"N/A","N/A","N/A","N/A","N/A","N/A","N/A","N/A","2015-10-01",{"$nulls":12},"MBB: GRE expanding its St. Boni Sub., NSP will reroute its transmission line","Replied to customer that their Interconnection Request is incomplete because of ISD and point of interconnection."]
["2016-006","2016-06-13","x",null,"NSPW","2017-09-01","Approved","Completed","Bayfiled ","WI","500 KVA","New Herbster Sub. ","Jason Espeseth",null,"Bruning",null,"N/A","N/A","N/A","N/A","N/A","N/A","N/A","N/A","yes",{"$nulls":10},{"$f":"IF(AD27>=0.01,AD27-90,\"\")","v":""},{"$f":"IF(AD27>=0.01,AD27-90,\"\")","v":""}]
["2016-009","2016-08-19","X",null,"GRE","2019-06-01","Approved","Completed",null,"Murray","MN","69kV","69kV","Moon Lake","Dianlong Wang",null,"Bruning","N","N/A","N/A","N/A","N/A","N/A","N/A","N/A","N/A",{"$nulls":13},"PM - Chris Buboltz..  Project - GRE will construct a new Lake Wilson Breaker Station. "]
["2016-010","2016-10-31","x",null,"MLRS","2018-08-01","Withdrawn","Withdrawn","Stearns","MN","8 MW","Line #0795","Tim Bickford",null,"Gorski",{"$nulls":23},"PM - Noel Klinnert..  Project - Rebuild existing Herbster substation on existing location."]
["2016-011","2016-10-26","x",null,"MVCLP","2018-03-31","Approved","Completed","Chippewa County","MN","69kV","69kV","Chapman",null,"Tim Bickford",null,null,"Bruning","N","N/A","N/A","N/A","N/A","N/A","N/A","N/A","N/A","2016-12-08","2017-01-25",{"$nulls":9},"PM - Noel Klinnert"]
["2016-012","2016-11-17","X",null,"GRE","2018-03-31","Approved","Completed",null,"Scott","MN","115kV","115kV","Zinran","Jason Espeseth",null,"Bruning","Y","N/A","N/A","N/A","N/A","N/A","N/A","N/A","N/A","Yes",{"$nulls":12},"Note: According to NSP Planning the requested location is not desirable (line 5539). GRE was advised to interconnect the new sub. at the original location (line 0898) .","GRE - T-L Master IA - Appx A-98 - Zinran"]
["2017-001","2017-05-12",null,"X","DPC","2020-03-01","Approved","Completed",null,"Buffalo","WI","69kV","69kV","Nelson                              Line # 3408","Cooley/Gutzmann",null,"Bruning","N","N/A","N/A","N/A","N/A","N/A","N/A","N/A","N/A","2017-09-01"]
["2017-002","2017-05-12",null,"X","DPC","2020-12-01","Withdrawn","Withdrawn",null,"Barron","WI","69kV","69kV","Clear Lake                         Line # 3427","Cooley/Gutzmann",null,"Bruning","N","N/A","N/A","N/A","N/A","N/A","N/A","N/A","N/A","Yes"]
["2015-005","2015-10-30","x",null,"CHAK","2018-06-01","Approved","Engineering Review",null,"Carver","MN","50 MVA",null,"Hazeltine                           Line 5570 & 5516","Jason Espeseth",null,"Gorski",null,"N/A","N/A","N/A","N/A","N/A","N/A","N/A","N/A","2014-10-09"]
["2016-004","2016-06-13","x",null,"NSPW","2019-11-15","Evaluating","Engineering Review",null,"Bayfield","WI","4 MVA","69kV","Cable","Cooley/Gutzmann",null,"Bruning","N","N/A","N/A","N/A","N/A","N/A","N/A","N/A","N/A","yes",{"$nulls":12},"PM - Noel Klinnert. Project - Replace existing 69/12.47kV - 3.5MVA transformer with new 7MVA transformer."]
["2016-005","2016-06-13","x",null,"NSPW","2019-06-01","Evaluating","Planning Review",null,"Sawyer","WI","9.5 MVA","69kV","Farmers Inn Sub. ","Cooley/Gutzmann",null,"Bruning","N","N/A","N/A","N/A","N/A","N/A","N/A","N/A","N/A","Will take through C1 again",{"$nulls":12},"PM - Noel Klinnert..  Project - Add a new 69/12.47kV - 28MVA transformer to Farmers Inn substation."]
["2016-007","2016-06-13","X",null,"NSPW","2018-07-18","Approved","Under Construction",null,"Polk","WI","8 MVA ","69kV","Griffin Street Sub. ","Cooley/Gutzmann",null,"Bruning","N","N/A","N/A","N/A","N/A","N/A","N/A","N/A","N/A","2016-07-14"]
["2016-008","2016-07-22",null,"x","GRE","2020-09-01","Approved","Completed",null,"Dakota","MN","115kV","115kV","Lebanon Hills","Jason Standing",null,"Bruning","Y","N/A","N/A","N/A","N/A","N/A","N/A","N/A","N/A",{"$nulls":13},"PM - Noel Klinnert..  Project - Add a new 69/12.47kV - 28MVA transformer to Griffin Street substation."]
["2018-004","2018-10-09","X",null,"GRE","2020-10-31","Approved","Completed",null,"Larkin","MN","10MVA","115kV","Lismore Sub.                    Line # 5545","Jason Espeseth","Gene Kotz","Bruning","Y",{"$nulls":22},"GRE - T-L Master IA - Appx A-106 - Lismore-DRAFT"]
["2019-001","2019-02-20","x",null,"GRE","2020-08-01","Approved","Completed",null,"Rice","MN","6 MW","115kV","Cannon River Park          Line # 0832","Dianlong Wang","Brendan Cohen","Bruning","Y",{"$nulls":22},"GRE - T-L Master IA - Appx A-107 - Cannon River-DRAFT"]
["2018-003","2018-09-10","X",null,"NSPW","2020-09-15","Approved","Engineering Review","Completed?","Polk","WI","14MVA","69kV","Clear Lake - NSPM Line # 3427, 3428, 3429","Josh Gutzmann",null,"Bruning","N","N/A","N/A","N/A","N/A","N/A","N/A","N/A","N/A","2017-09-01",{"$nulls":12},"Rebuild Clear Lake Sub west of existing sub. (69 to 23.9kV transformer)."]
["2018-004","2018-10-09","X",null,"GRE","2020-10-31","Approved","Completed",null,"Larkin","MN","10MVA","115kV","Lismore Sub.                    Line # 5545","Jason Espeseth","Gene Kotz","Bruning","Y",{"$nulls":22},"GRE - T-L Master IA - Appx A-106 - Lismore-DRAFT"]
["2018-005","2018-10-18","X",null,"CITY OF SFLS","2019-09-01","Denied","Denied",null,"Sioux Falls","SD","6.4 MW","115kV","Madison St. Sub.","Jason Espeseth",null,"Herold","Y",{"$nulls":8},"No","2018-11-01",{"$nulls":11},"Customer submitted a radial tap IR.  XES responded the configuration needed to be an In/Out tap.  Original request was denied.  Customer has not submited revised IR. "]
["2018-006","2018-11-01","X",null,"NSPW","2020-05-15","Evaluating","Planning Review","Completed?","Chippewa","WI","14MVA","69kV","Hydro Lane Expansion","Josh Gutzmann","Curt Frank","Bruning","N","N/A","N/A","N/A","N/A","N/A","N/A","N/A","N/A","Yes",{"$nulls":12},"New 28MVA, 69:12.5kV transformer will be installed on a 69kV bus extension, and a new low side structure with two feeder bays."]
["2018-007","2018-12-12","X",null,"NSPW","2020-06-01","Approved","Engineering Review","Completed?","Dunn","WI","10.8MVA","69kV","Wakanda Substation       (Line # W3404)","Josh Gutzmann","Curt Frank","Bruning","N","N/A","N/A","N/A","N/A","N/A","N/A","N/A","N/A","Yes",{"$nulls":12},"New substation proposed to be built on property at 403 Gabriel Ct., Menomonie, WI, 54741.  Property has not been purchased yet, but NSPW has first right of refusal."]
["2018-008","2018-12-12","X",null,"NSPW","2020-05-15","Approved","Under Construction","Completed?","Chippewa","WI","No change","69kV","Wissota Beach Sub. Rebuild","Josh Gutzmann","Curt Frank","Bruning","N","N/A","N/A","N/A","N/A","N/A","N/A","N/A","N/A","2019-03-01",{"$nulls":12},"Wissota Beach sub will be rebuilt by construction of new substation facilities on existing property."]
["2018-009","2018-12-12","X",null,"NSPW","2020-12-15","Approved","Engineering Review","Completed?","Pierce","WI","No change","69kV","Elmwood Sub. Rebuild","Josh Gutzmann","Curt Frank","Bruning","N","N/A","N/A","N/A","N/A","N/A","N/A","N/A","N/A","Yes",{"$nulls":12},"Construct new transmission 3-breaker station in collaboration of a rebuild of the distribution sub on existing property."]
["2018-010","2018-12-12","X",null,"NSPW","2020-12-15","Evaluating","Planning Review","Completed?","Buffalo","WI","No change","69kV","Increase capacity at Cochrance Sub.","Josh Gutzmann","Curt Frank","Bruning","N","N/A","N/A","N/A","N/A","N/A","N/A","N/A","N/A","Yes",{"$nulls":12},"Upgrade the Cochrane TR from 2.8MVA, 69:12.5kV to 7MVA, 69:12.5kV to relieve overload."]
["2018-011","2018-12-12","X",null,"NSPW","2020-12-15","Approved","Engineering Review","Completed?","Barron","WI","No change","69kV","Replace TR1 at Cumberland Sub. ","Josh Gutzmann","Curt Frank","Bruning","N","N/A","N/A","N/A","N/A","N/A","N/A","N/A","N/A","2018-11-01",{"$nulls":12},"Replace TR1: Install 7MVA, 69:23.9kV, delta-wye grounded transformer. Cumberland served from DPC. "]
["2018-012","2018-12-12","X",null,"NSPW","2020-10-15","Evaluating","Planning Review","Completed?","Barron","WI","No change","69kV","Ridgeland Sub.","Josh Gutzmann","Curt Frank","Bruning","N","N/A","N/A","N/A","N/A","N/A","N/A","N/A","N/A","Yes",{"$nulls":12},"Replace 6.25MVA, 69:23.9kV, Y-Y TR with 7MVA, 69:23.9kV std winding TR.  Modify low side structure to accommodate RID082 and a 3rd feeder. "]
["2018-013","2018-12-12","X",null,"NSPW","2020-12-15","Approved","Engineering Review","Completed?","St. Croix","WI","No change","69kV","Rebuild Kinnickinnic Substation ","Josh Gutzmann","Curt Frank","Bruning","N","N/A","N/A","N/A","N/A","N/A","N/A","N/A","N/A","2018-12-01",{"$nulls":12},"Kinnickinnic sub will be rebuilt on existing property. "]
["2018-014","2018-12-12","X",null,"NSPW","2019-12-15","Evaluating","Planning Review","Completed?","Bayfield","WI","No change","69kV","Upgrade Port Wing Substation (W3604-930)","Josh Gutzmann","Curt Frank","Bruning","N","N/A","N/A","N/A","N/A","N/A","N/A","N/A","N/A","Yes",{"$nulls":12},"SSI 4kV conversion project consists of replacing the existing 1MVA TR with a new 3MVA, 34.5-12.5kV padmount TR and replacement regs."]
["2018-015","2018-12-12","X",null,"NSPW","2020-10-15","Approved","Engineering Review","Completed?","Gogebic","WI","No change","69kV","Ironwood Substation","Josh Gutzmann","Curt Frank","Bruning","N","N/A","N/A","N/A","N/A","N/A","N/A","N/A","N/A","2018-08-01",{"$nulls":12},"This project will construct a new 12.5kV Ironwood dist. Sub yard where the old service center building was.  "]
["2019-001","2019-02-20","x",null,"GRE","2020-08-01","Approved","Completed","Completed?","Rice","MN","6 MW","115kV","Cannon River Park          Line # 0832","Dianlong Wang","Brendan Cohen","Bruning","Y",{"$nulls":22},"GRE - T-L Master IA - Appx A-107 - Cannon River-DRAFT"]
["2019-002","2019-04-02","X",null,"NSPM","2020-09-01","Evaluating","Engineering Review","Completed?","Washington","MN","14 MW","115 kV","Line #0886","Jason Espeseth","Grant Stevenson","Gorski","Y","N/A","N/A"]
["2019-003","2019-04-08","X",null,"DPC","2020-06-30","Approved","Under Construction","Completed?","Clark","WI","3MW","69kV","Hanson - Line #3403","Josh Gutzmann",null,"Bruning","N","N/A","N/A",{"$nulls":6},"2019-07-01",{"$nulls":12},"This interconnection will tap XEL's T-Corners-Spokesville line. DPC would construct approximately a four mile 69 kV tap line to the distribution substation. "]
["2019-004","2019-04-30","X",null,"NSPM","2020-11-15","Approved","Under Construction","Completed?","Washington","MN","25 MW","115 kV","Line #0817 - Raptor","Jason Standing","Brendan Cohen","Gorski","Y","N/A","N/A","N/A","N/A","N/A","N/A","N/A","N/A",{"$nulls":13},"This project will construct a new 115/34.5 kV substation (RAPTOR) that will initially have one transformer, but will be designed for ultimately two transformers."]
["2019-005","2019-05-23","X",null,"EREPC","2020-09-01","Approved ","Under Construction","Completed?","Renville","MN","3 MW","69 kV","Wellington / Line #0721","Jason Espeseth",null,"Willey","N","N/A","N/A","N/A","N/A","N/A","N/A","N/A","N/A","2019-07-01"]
["2019-006","2019-06-24","X",null,"DPC","2020-11-01","Approved","Under Construction","Completed?","Jackson","WI","5.4 MW","69 kV","May Coulee / Line #3401","Craig Wrisley ",null,"Bruning","N","N/A","N/A","N/A","N/A","N/A","N/A","N/A","N/A","2019-08-01",{"$nulls":12},"Exact tap location - TBD.  DPC has two locations: 1.1 miles NE of Hixton & another options 3.1 miles NE.  DPC will work with XEL as the tap location is determined. "]
["2019-007","2019-10-10","X",null,"NSPW","2020-05-15","Evaluating","Planning Review","Completed?","Chippewa","WI","14 MVA","69 kV","Bateman Sub  Line #3418","Josh Gutzmann",null,"Bruning","N","N/A","N/A","N/A","N/A","N/A","N/A","N/A","N/A",{"$nulls":13},"Bateman Sub. will replace Wissota Beach.  Existing Wissota Beach Substation will be retired after distribution conversion."]
["2020-001","2020-02-17","X",null,"City of Medford","2020-09-01","Denied","Denied","n/a","Taylor","WI","n/a","69 kV","Breaker additions at Medford North and South","Josh Gutzmann",null,"Bruning","N","N/A","N/A","N/A","N/A","N/A","N/A","N/A","N/A",{"$nulls":13},"Add 69kV breakers and line protection at 4E262, 4E265 in 2020.  Add 69kV breakers and line protection at 4E269, 4E270, 4E271 in 2021."]
["2021-002","2021-03-23",null,"X","GRE","2022-06-01","Approved","Completed","Willmar Sub. Expansion",null,"Kandiyohi","MN","No change","115 kV","Dylan Kohl ",null,"Bruning","N","N/A","N/A","N/A","N/A","N/A","N/A","N/A","N/A","Completed",{"$nulls":12},"GRE is expanding its 69/115/230kV substation and NSP is re-energizing its 0823 line to connect to the south west side of the sub. "]

{"sheet":"Public NSP T_L & T_T Queue","index":2,"n_rows":54,"n_cols":8,"rows_kept":54,"merged":[[4,0,4,7],[5,0,5,7],[9,2,9,3]]}
[]
[]
[]
[]
["NSP Transmission to Load (T-L) and Transmission to Transmission (T-T)"]
[" Interconnection Queue"]
[]
[{"$nulls":6},"Updated on:",{"$f":"TODAY()","v":"2023-09-07"}]
[]
[{"$f":"'Internal Active NSP Queue'!A5","v":"NSP Queue No."},{"$f":"'Internal Active NSP Queue'!B5","v":"Queue Date (Received Interconnection Request Form)"},{"$f":"'Internal Active NSP Queue'!C5","v":"Type of Interconnection"},null,{"$f":"'Internal Active NSP Queue'!E5","v":"Customer"},{"$f":"'Internal Active NSP Queue'!F5","v":"Expected Project           Completion Date "},{"$f":"'Internal Active NSP Queue'!G5","v":"Request Status                   (Evaluating/      Approved/      Denied/ Withdrawn)"},"Progress Stage (Phases:            Planning Review, Engineering Review, Under Construction)"]
[null,null,"T-L","T-T"]
[{"$f":"'Internal Active NSP Queue'!A46","v":"2018-001"},{"$f":"'Internal Active NSP Queue'!B46","v":"2018-08-01"},null,{"$f":"'Internal Active NSP Queue'!D46","v":"X"},{"$f":"'Internal Active NSP Queue'!E46","v":"OTP"},{"$f":"'Internal Active NSP Queue'!F46","v":"2021-03-01"},{"$f":"'Internal Active NSP Queue'!G46","v":"Evaluating"},{"$f":"'Internal Active NSP Queue'!H46","v":"Planning Review"}]
[{"$f":"'Internal Active NSP Queue'!A47","v":"2018-002"},{"$f":"'Internal Active NSP Queue'!B47","v":"2018-10-08"},"X",null,{"$f":"'Internal Active NSP Queue'!E47","v":"NSPM"},{"$f":"'Internal Active NSP Queue'!F47","v":"2023-10-15"},{"$f":"'Internal Active NSP Queue'!G47","v":"Evaluating"},{"$f":"'Internal Active NSP Queue'!H47","v":"Planning Review"}]
[{"$f":"'Internal Active NSP Queue'!A69","v":"2019-009"},{"$f":"'Internal Active NSP Queue'!B69","v":"2019-10-22"},"X",null,{"$f":"'Internal Active NSP Queue'!E69","v":"GRE"},{"$f":"'Internal Active NSP Queue'!F69","v":"2022-04-01"},{"$f":"'Internal Active NSP Queue'!G69","v":"Withdrawn"},{"$f":"'Internal Active NSP Queue'!H69","v":"Withdrawn"}]
[{"$f":"'Internal Active NSP Queue'!A71","v":"2020-002"},{"$f":"'Internal Active NSP Queue'!B71","v":"2020-04-03"},"X",null,{"$f":"'Internal Active NSP Queue'!E71","v":"NSPM"},{"$f":"'Internal Active NSP Queue'!F71","v":"2021-03-15"},{"$f":"'Internal Active NSP Queue'!G71","v":"Approved"},{"$f":"'Internal Active NSP Queue'!H71","v":"Under Construction"}]
[{"$f":"'Internal Active NSP Queue'!A72","v":"2020-003"},{"$f":"'Internal Active NSP Queue'!B72","v":"2020-04-03"},"X",null,{"$f":"'Internal Active NSP Queue'!E72","v":"NSPM"},{"$f":"'Internal Active NSP Queue'!F72","v":"2021-12-15"},{"$f":"'Internal Active NSP Queue'!G72","v":"Approved"},{"$f":"'Internal Active NSP Queue'!H72","v":"Under Construction"}]
[{"$f":"'Internal Active NSP Queue'!A73","v":"2020-004"},{"$f":"'Internal Active NSP Queue'!B73","v":"2020-05-29"},"X",null,{"$f":"'Internal Active NSP Queue'!E73","v":"Shakopee Public Util."},{"$f":"'Internal Active NSP Queue'!F73","v":"2023-03-31"},{"$f":"'Internal Active NSP Queue'!G73","v":"Approved"},{"$f":"'Internal Active NSP Queue'!H73","v":"Under Construction"}]
[{"$f":"'Internal Active NSP Queue'!A74","v":"2020-005"},{"$f":"'Internal Active NSP Queue'!B74","v":"2020-05-29"},"X",null,{"$f":"'Internal Active NSP Queue'!E74","v":"Shakopee Public Util."},{"$f":"'Internal Active NSP Queue'!F74","v":"2025-06-01"},{"$f":"'Internal Active NSP Queue'!G74","v":"Withdrawn"},{"$f":"'Internal Active NSP Queue'!H74","v":"Withdrawn"}]
[{"$f":"'Internal Active NSP Queue'!A75","v":"2020-006"},{"$f":"'Internal Active NSP Queue'!B75","v":"2020-10-14"},"X",null,{"$f":"'Internal Active NSP Queue'!E75","v":"NSPW"},{"$f":"'Internal Active NSP Queue'!F75","v":"2022-05-15"},{"$f":"'Internal Active NSP Queue'!G75","v":"Approved"},{"$f":"'Internal Active NSP Queue'!H75","v":"Engineering Review"}]
[{"$f":"'Internal Active NSP Queue'!A76","v":"2020-007"},{"$f":"'Internal Active NSP Queue'!B76","v":"2020-10-14"},"X",null,{"$f":"'Internal Active NSP Queue'!E76","v":"NSPW"},{"$f":"'Internal Active NSP Queue'!F76","v":"2022-05-15"},{"$f":"'Internal Active NSP Queue'!G76","v":"Approved"},{"$f":"'Internal Active NSP Queue'!H76","v":"Engineering Review"}]
[{"$f":"'Internal Active NSP Queue'!A77","v":"2021-001"},{"$f":"'Internal Active NSP Queue'!B77","v":"2021-03-11"},null,{"$f":"'Internal Active NSP Queue'!D77","v":"X"},{"$f":"'Internal Active NSP Queue'!E77","v":"GRE"},{"$f":"'Internal Active NSP Queue'!F77","v":"2024-06-01"},{"$f":"'Internal Active NSP Queue'!G77","v":"Withdrawn"},{"$f":"'Internal Active NSP Queue'!H77","v":"Withdrawn"}]
[{"$f":"'Internal Active NSP Queue'!A78","v":"2021-002"},{"$f":"'Internal Active NSP Queue'!B78","v":"2021-03-23"},null,{"$f":"'Internal Active NSP Queue'!D78","v":"X"},{"$f":"'Internal Active NSP Queue'!E78","v":"GRE"},{"$f":"'Internal Active NSP Queue'!F78","v":"2022-06-01"},{"$f":"'Internal Active NSP Queue'!G78","v":"Approved"},{"$f":"'Internal Active NSP Queue'!H78","v":"Completed"}]
[{"$f":"'Internal Active NSP Queue'!A79","v":"2021-003"},{"$f":"'Internal Active NSP Queue'!B79","v":"2021-09-14"},"X",null,{"$f":"'Internal Active NSP Queue'!E79","v":"Envis"},{"$f":"'Internal Active NSP Queue'!F79","v":"2023-08-15"},{"$f":"'Internal Active NSP Queue'!G79","v":"Approved"},{"$f":"'Internal Active NSP Queue'!H79","v":"Engineering Review"}]
[{"$f":"'Internal Active NSP Queue'!A80","v":"2021-004"},{"$f":"'Internal Active NSP Queue'!B80","v":"2021-10-06"},"X",null,{"$f":"'Internal Active NSP Queue'!E80","v":"City of Chaska"},{"$f":"'Internal Active NSP Queue'!F80","v":"2024"},{"$f":"'Internal Active NSP Queue'!G80","v":"Approved"},{"$f":"'Internal Active NSP Queue'!H80","v":"Engineering Review"}]
[{"$f":"'Internal Active NSP Queue'!A81","v":"2021-005"},{"$f":"'Internal Active NSP Queue'!B81","v":"2021-10-25"},"X",null,{"$f":"'Internal Active NSP Queue'!E81","v":"NSPM"},{"$f":"'Internal Active NSP Queue'!F81","v":"2025-10-15"},{"$f":"'Internal Active NSP Queue'!G81","v":"Evaluating"},{"$f":"'Internal Active NSP Queue'!H81","v":"Planning Review"}]
[{"$f":"'Internal Active NSP Queue'!A82","v":"2021-006"},{"$f":"'Internal Active NSP Queue'!B82","v":"2021-11-04"},{"$f":"'Internal Active NSP Queue'!C82","v":"X"},null,{"$f":"'Internal Active NSP Queue'!E82","v":"GRE"},{"$f":"'Internal Active NSP Queue'!F82","v":"2023-05-01"},{"$f":"'Internal Active NSP Queue'!G82","v":"Approved"},{"$f":"'Internal Active NSP Queue'!H82","v":"Under Construction"}]
[{"$f":"'Internal Active NSP Queue'!A83","v":"2021-007"},{"$f":"'Internal Active NSP Queue'!B83","v":"2021-11-22"},"X",null,{"$f":"'Internal Active NSP Queue'!E83","v":"GRE"},{"$f":"'Internal Active NSP Queue'!F83","v":"2024-09-01"},{"$f":"'Internal Active NSP Queue'!G83","v":"Evaluating"},{"$f":"'Internal Active NSP Queue'!H83","v":"Planning Review"}]
[{"$f":"'Internal Active NSP Queue'!A84","v":"2021-008"},{"$f":"'Internal Active NSP Queue'!B84","v":"2021-12-21"},"X",null,{"$f":"'Internal Active NSP Queue'!E84","v":"GRE"},{"$f":"'Internal Active NSP Queue'!F84","v":"2024-06-01"},{"$f":"'Internal Active NSP Queue'!G84","v":"Withdrawn"},{"$f":"'Internal Active NSP Queue'!H84","v":"Withdrawn"}]
[{"$f":"'Internal Active NSP Queue'!A85","v":"2022-001"},{"$f":"'Internal Active NSP Queue'!B85","v":"2022-01-19"},"X",null,{"$f":"'Internal Active NSP Queue'!E85","v":"City of Sauk Centre"},{"$f":"'Internal Active NSP Queue'!F85","v":"1905-07-16"},{"$f":"'Internal Active NSP Queue'!G85","v":"Approved"},{"$f":"'Internal Active NSP Queue'!H85","v":"Engineering Review"}]
[{"$f":"'Internal Active NSP Queue'!A86","v":"2022-002"},{"$f":"'Internal Active NSP Queue'!B86","v":"2022-02-09"},"X",null,{"$f":"'Internal Active NSP Queue'!E86","v":"GRE"},{"$f":"'Internal Active NSP Queue'!F86","v":"2024-06-01"},{"$f":"'Internal Active NSP Queue'!G86","v":"Evaluating"},{"$f":"'Internal Active NSP Queue'!H86","v":"Resubmitted with new ISD"}]
[{"$f":"'Internal Active NSP Queue'!A87","v":"2022-003"},{"$f":"'Internal Active NSP Queue'!B87","v":"2022-02-11"},"X",null,{"$f":"'Internal Active NSP Queue'!E87","v":"NSPM"},{"$f":"'Internal Active NSP Queue'!F87","v":"2023-10-15"},{"$f":"'Internal Active NSP Queue'!G87","v":"Evaluating"},{"$f":"'Internal Active NSP Queue'!H87","v":"Planning Review"}]
[{"$f":"'Internal Active NSP Queue'!A88","v":"2022-004"},{"$f":"'Internal Active NSP Queue'!B88","v":"2022-02-11"},"X",null,{"$f":"'Internal Active NSP Queue'!E88","v":"NSPM"},{"$f":"'Internal Active NSP Queue'!F88","v":"2023-10-15"},{"$f":"'Internal Active NSP Queue'!G88","v":"Evaluating"},{"$f":"'Internal Active NSP Queue'!H88","v":"Planning Review"}]
[{"$f":"'Internal Active NSP Queue'!A89","v":"2022-005"},{"$f":"'Internal Active NSP Queue'!B89","v":"2022-02-23"},"X",null,{"$f":"'Internal Active NSP Queue'!E89","v":"Copperwood Resources"},{"$f":"'Internal Active NSP Queue'!F89","v":"2024-09-01"},{"$f":"'Internal Active NSP Queue'!G89","v":"Evaluating"},{"$f":"'Internal Active NSP Queue'!H89","v":"Planning Review"}]
[{"$f":"'Internal Active NSP Queue'!A90","v":"2022-006"},{"$f":"'Internal Active NSP Queue'!B90","v":"2022-03-28"},"X",null,{"$f":"'Internal Active NSP Queue'!E90","v":"NSPM"},{"$f":"'Internal Active NSP Queue'!F90","v":"2024-10-15"},{"$f":"'Internal Active NSP Queue'!G90","v":"Evaluating"},{"$f":"'Internal Active NSP Queue'!H90","v":"Planning Review"}]
[{"$f":"'Internal Active NSP Queue'!A91","v":"2022-007"},{"$f":"'Internal Active NSP Queue'!B91","v":"2022-04-12"},"X",null,{"$f":"'Internal Active NSP Queue'!E91","v":"GRE"},{"$f":"'Internal Active NSP Queue'!F91","v":"2024-11-30"},{"$f":"'Internal Active NSP Queue'!G91","v":"Approved"},{"$f":"'Internal Active NSP Queue'!H91","v":"Engineering Review"}]
[{"$f":"'Internal Active NSP Queue'!A93","v":"2022-008"},{"$f":"'Internal Active NSP Queue'!B93","v":"2022-09-28"},"X",null,{"$f":"'Internal Active NSP Queue'!E93","v":"DPC"},{"$f":"'Internal Active NSP Queue'!F93","v":"2024-12-31"},{"$f":"'Internal Active NSP Queue'!G93","v":"Evaluating"},{"$f":"'Internal Active NSP Queue'!H93","v":"Planning Review"}]
[{"$f":"'Internal Active NSP Queue'!A92","v":"2022-009"},{"$f":"'Internal Active NSP Queue'!B92","v":"2022-09-05"},"X",null,{"$f":"'Internal Active NSP Queue'!E92","v":"OTP"},{"$f":"'Internal Active NSP Queue'!F92","v":"2024-12-31"},{"$f":"'Internal Active NSP Queue'!G92","v":"Approved"},{"$f":"'Internal Active NSP Queue'!H92","v":"Engineering Review"}]
[{"$f":"'Internal Active NSP Queue'!A94","v":"2022-010"},{"$f":"'Internal Active NSP Queue'!B94","v":"2022-10-14"},"X",null,{"$f":"'Internal Active NSP Queue'!E94","v":"GRE"},{"$f":"'Internal Active NSP Queue'!F94","v":"2024-09-01"},{"$f":"'Internal Active NSP Queue'!G94","v":"Evaluating"},{"$f":"'Internal Active NSP Queue'!H94","v":"Planning Review"}]
[{"$f":"'Internal Active NSP Queue'!A95","v":"2023-001"},{"$f":"'Internal Active NSP Queue'!B95","v":"2023-03-29"},"X",null,{"$f":"'Internal Active NSP Queue'!E95","v":"MMPA"},{"$f":"'Internal Active NSP Queue'!F95","v":"2026-03-31"},{"$f":"'Internal Active NSP Queue'!G95","v":"Evaluating"},{"$f":"'Internal Active NSP Queue'!H95","v":"Planning Review"}]
[{"$f":"'Internal Active NSP Queue'!A96","v":"2023-002"},{"$f":"'Internal Active NSP Queue'!B96","v":"2023-04-10"},"X",null,{"$f":"'Internal Active NSP Queue'!E96","v":"GRE"},{"$f":"'Internal Active NSP Queue'!F96","v":"2026-12-31"},{"$f":"'Internal Active NSP Queue'!G96","v":"Evaluating"},{"$f":"'Internal Active NSP Queue'!H96","v":"Planning Review"}]
[{"$f":"'Internal Active NSP Queue'!A97","v":"2023-003"},{"$f":"'Internal Active NSP Queue'!B97","v":"2023-07-12"},"X",null,{"$f":"'Internal Active NSP Queue'!E97","v":"GRE"},{"$f":"'Internal Active NSP Queue'!F97","v":"2026-02-26"},{"$f":"'Internal Active NSP Queue'!G97","v":"Evaluating"},{"$f":"'Internal Active NSP Queue'!H97","v":"Planning Review"}]
[{"$f":"'Internal Active NSP Queue'!A98","v":"2023-004"},{"$f":"'Internal Active NSP Queue'!B98","v":"2023-07-20"},"X",null,{"$f":"'Internal Active NSP Queue'!E98","v":"NSPM"},{"$f":"'Internal Active NSP Queue'!F98","v":"2027-06-15"},{"$f":"'Internal Active NSP Queue'!G98","v":"Evaluating"},{"$f":"'Internal Active NSP Queue'!H98","v":"Planning Review"}]
[{"$f":"'Internal Active NSP Queue'!A99","v":"2023-005"},{"$f":"'Internal Active NSP Queue'!B99","v":"8/9/20023"},"X",null,{"$f":"'Internal Active NSP Queue'!E99","v":"NSPM"},{"$f":"'Internal Active NSP Queue'!F99","v":"2025-10-15"},{"$f":"'Internal Active NSP Queue'!G99","v":"Evaluating"},{"$f":"'Internal Active NSP Queue'!H99","v":"Planning Review"}]
[{"$f":"'Internal Active NSP Queue'!A100","v":"2023-006"},{"$f":"'Internal Active NSP Queue'!B100","v":"8/9/20023"},"X",null,{"$f":"'Internal Active NSP Queue'!E100","v":"NSPM"},{"$f":"'Internal Active NSP Queue'!F100","v":"2025-10-15"},{"$f":"'Internal Active NSP Queue'!G100","v":"Evaluating"},{"$f":"'Internal Active NSP Queue'!H100","v":"Planning Review"}]
[{"$f":"'Internal Active NSP Queue'!A101","v":"2023-007"},{"$f":"'Internal Active NSP Queue'!B101","v":"8/9/20023"},"X",null,{"$f":"'Internal Active NSP Queue'!E101","v":"NSPM"},{"$f":"'Internal Active NSP Queue'!F101","v":"2028-06-30"},{"$f":"'Internal Active NSP Queue'!G101","v":"Evaluating"},{"$f":"'Internal Active NSP Queue'!H101","v":"Planning Review"}]
[{"$f":"'Internal Active NSP Queue'!A102","v":"2023-008"},{"$f":"'Internal Active NSP Queue'!B102","v":"8/9/20023"},"X",null,{"$f":"'Internal Active NSP Queue'!E102","v":"NSPM"},{"$f":"'Internal Active NSP Queue'!F102","v":"2025-10-15"},{"$f":"'Internal Active NSP Queue'!G102","v":"Evaluating"},{"$f":"'Internal Active NSP Queue'!H102","v":"Planning Review"}]
[{"$f":"'Internal Active NSP Queue'!A103","v":"2023-009"},{"$f":"'Internal Active NSP Queue'!B103","v":"8/9/20023"},"X",null,{"$f":"'Internal Active NSP Queue'!E103","v":"NSPM"},{"$f":"'Internal Active NSP Queue'!F103","v":"2025-10-15"},{"$f":"'Internal Active NSP Queue'!G103","v":"Evaluating"},{"$f":"'Internal Active NSP Queue'!H103","v":"Planning Review"}]
[{"$f":"'Internal Active NSP Queue'!A104","v":"2023-010"},{"$f":"'Internal Active NSP Queue'!B104","v":"8/9/20023"},"X",null,{"$f":"'Internal Active NSP Queue'!E104","v":"NSPM"},{"$f":"'Internal Active NSP Queue'!F104","v":"2025-10-15"},{"$f":"'Internal Active NSP Queue'!G104","v":"Evaluating"},{"$f":"'Internal Active NSP Queue'!H104","v":"Planning Review"}]
[{"$f":"'Internal Active NSP Queue'!A105","v":"2023-011"},{"$f":"'Internal Active NSP Queue'!B105","v":"8/9/20023"},"X",null,{"$f":"'Internal Active NSP Queue'!E105","v":"NSPM"},{"$f":"'Internal Active NSP Queue'!F105","v":"2024-10-15"},{"$f":"'Internal Active NSP Queue'!G105","v":"Evaluating"},{"$f":"'Internal Active NSP Queue'!H105","v":"Planning Review"}]
[{"$f":"'Internal Active NSP Queue'!A106","v":"2023-012"},{"$f":"'Internal Active NSP Queue'!B106","v":"8/10/20023"},"X",null,{"$f":"'Internal Active NSP Queue'!E106","v":"NSPM"},{"$f":"'Internal Active NSP Queue'!F106","v":"2026-10-15"},{"$f":"'Internal Active NSP Queue'!G106","v":"Evaluating"},{"$f":"'Internal Active NSP Queue'!H106","v":"Planning Review"}]
[{"$f":"'Internal Active NSP Queue'!A107","v":"2023-013"},{"$f":"'Internal Active NSP Queue'!B107","v":"8/10/20023"},"X",null,{"$f":"'Internal Active NSP Queue'!E107","v":"NSPM"},{"$f":"'Internal Active NSP Queue'!F107","v":"2026-10-15"},{"$f":"'Internal Active NSP Queue'!G107","v":"Evaluating"},{"$f":"'Internal Active NSP Queue'!H107","v":"Planning Review"}]
[{"$f":"'Internal Active NSP Queue'!A108","v":"2023-014"},{"$f":"'Internal Active NSP Queue'!B108","v":"8/25/20023"},"X",null,{"$f":"'Internal Active NSP Queue'!E108","v":"Project Elk River"},{"$f":"'Internal Active NSP Queue'!F108","v":"2026-01-01"},{"$f":"'Internal Active NSP Queue'!G108","v":"Evaluating"},{"$f":"'Internal Active NSP Queue'!H108","v":"Planning Review"}]
[{"$f":"'Internal Active NSP Queue'!A109","v":"2023-015"},{"$f":"'Internal Active NSP Queue'!B109","v":"8/29/20023"},"X",null,{"$f":"'Internal Active NSP Queue'!E109","v":"NSPM"},{"$f":"'Internal Active NSP Queue'!F109","v":"2026-10-15"},{"$f":"'Internal Active NSP Queue'!G109","v":"Evaluating"},{"$f":"'Internal Active NSP Queue'!H109","v":"Planning Review"}]
[{"$f":"'Internal Active NSP Queue'!A110","v":"2023-016"},{"$f":"'Internal Active NSP Queue'!B110","v":"8/29/20023"},"X",null,{"$f":"'Internal Active NSP Queue'!E110","v":"NSPM"},{"$f":"'Internal Active NSP Queue'!F110","v":"2025-12-15"},{"$f":"'Internal Active NSP Queue'!G110","v":"Evaluating"},{"$f":"'Internal Active NSP Queue'!H110","v":"Planning Review"}]